{"text_format":"1","workbook":"xlsx","n_sheets":5,"sheets":["LEES MIJ Infopagina","Kleuren DS bakselcodes","Kleurenpalet totaal","Kleurenpalet per periode","Tellijst bakselverdeling"],"not_rendered":{"charts":15,"images":2,"macros":1,"external_links":0,"defined_names":0,"comments":0,"pivot_tables":0},"unopened":[],"bounds":{"document_bytes":16777216,"sheet_cells":100000,"rows_first":2000,"rows_last":500,"rows_between":2000,"halvings":0,"cell_chars":16384,"cell_head_chars":4096},"cells_cut":0,"cells_raw":0,"read":"whole","date_system":"1900"}

{"sheet":"LEES MIJ Infopagina","index":0,"n_rows":61,"n_cols":4,"rows_kept":61,"cut":false,"hidden":false,"merged":[[50,1,50,15],[10,1,10,14],[29,3,29,18],[31,3,31,18],[36,1,36,17],[37,1,37,17]]}
["\"Kleurcodes voor bakselgroepen binnen het Deventer Systeem\""]
[]
["LEES MIJ:"]
[]
["De bedoeling van dit Excelbestand is tweeledig: "]
[]
[null,"1. Het presenteert de standaardkleuren voor bakselgroepen uit het Deventer systeem. Zie voor verdere details m.b.t. de bakselgroepen: https://www.deventersysteem.nl/materials."]
[null,"2. Het bevat twee macro's die de standaardkleuren automatisch toekennen aan grafieken met bakselverdelingen in Excel. "]
[]
[null,"Standaardkleuren voor bakselcodes in het Deventer systeem:"]
[null," - De gedefinieerde kleurcodes zijn weergegeven in het tabblad \"Kleuren DS bakselcodes\", vergezeld van:"]
[null,null," - de verklaring van de bakselcode"]
[null,null," - de RGB-waarde van de kleur"]
[null,null," - de standaardvolgorde waarop de baksels gesorteerd zijn in grafieken, tellijsten en catalogi"]
[null,null," - de ruimste datering waarin deze baksels in Nederlandse en Vlaamse bodem worden aangetroffen"]
[]
[null,"Grafieken:"]
[null,"Grafieken met bakselverhoudingen geven een visualisatie van de verdeling van aantallen over categorieën."]
[null,null," - Aantallen zijn numeriek. Voorbeelden hiervan zijn:"]
[null,null,null," - n scherven (aantal scherven)"]
[null,null,null," - MAE (Minimum Aantal Exemplaren)"]
[null,null,null," - EVE's (Estimated Vessel Equivalents/ randpercentages)"]
[null,null,null," - gewicht"]
[null,null," - Categorieën zijn in tekst, en betreffen in dit geval de bakselcodes. NB: alleen de bakselcodes uit kolom A van het tabblad \"Kleuren DS bakselcodes\" kunnen als categorie functioneren."]
[]
[null,"Macro's (zie ook tabblad \"Kleurenpalet totaal\"):"]
[null,null," - De eerste macro (\"ColorByCategoryLabel\") werkt voor grafieken met één dataset zoals een taartdiagram (sneltoets: CTRL+t)"]
[null,null," - De tweede macro (\"ColorBySeriesName\") werkt voor grafieken met meerdere datasets, ofwel een kruistabel, zoals bijvoorbeeld bij het vergelijken van de inhoud van verschillende sporen met een staafdiagram (sneltoets: CTRL+f)"]
[]
[null,null,"Let op:"," - De macro's werken alleen met de bakselcodes zoals die in het tabblad \"Kleuren DS bakselcode\", veld A2 t/m A66 zijn weergegeven, inclusief \"indet.\". Wanneer je andere variabelen aan een dataset toegevoegt, werken de macro's niet."]
[]
[null,null,"Let op:"," - De macro's halen de kleurinformatie die zij op de grafieken toepassen uit de vulling van de cellen A2 t/m A66 onder tabblad \"Kleuren DS bakselcode\". Pas daarom de vullingkleur van die cellen niet aan, en verwijder de kleur niet uit de cellen."]
[]
[null,"Gebruiksaanwijzing macro's:"]
[null," - Open dit bestand. Kies altijd de optie \"macro's inschakelen\" bij het openen. Als deze optie niet op het scherm verschijnt is het beveiligingsniveau van Excel te hoog. Stel het beveiligingsniveau in op \"Gemiddeld\"."]
[null,null,"(ga naar: Extra>Macro>Beveiliging, sluit het bestand en open het opnieuw; nu zul je wel de optie krijgen om macro's in te schakelen)"]
[null," -  Kies \"Opslaan als\" en sla het op onder een andere naam, bijv. \"Aardewerkanalyse Opgraving Kerkstraat.xls\""]
[null," - Laat altijd het tabblad \"Kleuren DS bakselcodes\" ongemoeid in het bestand staan, wijzig ook de naam van het tabblad niet. Zonder dit tabblad werken de macro's niet! Andere tabbladen kunnen zonder problemen verwijderd, hernoemd of toegevoegd worden."]
[null," - Voeg de bakselverdeling aan een van de tabbladen toe (Blad1, Blad2, etc.)."]
[null," - Selecteer het gegevensbereik."]
[null," - Maak een grafiek, zoals gebruikelijk is binnen Excel."]
[null," - Selecteer het grafiekgebied. Dat wil zeggen, klik de betreffende grafiek waarop Deventer Systeem kleurcodes toegepast moeten worden."]
[null," - Gebruik de sneltoets \"CTRL-t\" voor een grafiek met één dataset (taartdiagram), of \"CTRL-f\" voor meerdere datasets in een kruistabel (vergelijkend staafdiagram)."]
[null," - Voilá!"]
[]
[null,"NB: De tabbladen \"Kleurenpalet totaal\", \"Kleurenpalet per periode\" en \"Tellijst bakselverdeling\" hebben alleen een informatieve voorbeeldfunctie. Voor een goede werking van de macro's kunnen deze tabbladen zonder problemen uit het excelbestand verwijderd worden."]
[]
[null,"Bibliografische referentie"]
[null,"Bij gebruik van de standaard kleurcodes voor de bakselgroepen in het Deventer Systeem kunt u verwijzen naar het artikel waar de kleurcodes voor het eerst zijn gepresenteerd:"]
[]
[null,"Jaspers, N.L., 2011: \"Twee digitale toepassingen voor het Deventer Systeem: bladwijzers en standaard kleurcodes voor bakselgroepen\". In: Assembled Articles 4. Symposium on Medieval and Post Medieval Ceramics, Zwolle, 89-100."]
[]
[null,"Voor verwijzing naar dit excel-bestand kunt u de volgende referentie gebruiken:"]
[]
[null,"Jaspers, N.L. & S. Ostkamp, 2020: \"Kleurcodes voor bakselgroepen binnen het Deventer Systeem\", Herziene versie excel-bestand September 2020, Amsterdam."]
[]
[]
["Auteurs: N.L. Jaspers & S. Ostkamp."]
["Met medewerking van: J. Verhoek, W. Jezeer, S. Jongma, J. Pasveer, R. Marjot."]
["Titel: \"Kleurcodes voor bakselgroepen binnen het Deventer Systeem\""]
["Herziene versie: September 2020, Amsterdam."]

{"sheet":"Kleuren DS bakselcodes","index":1,"n_rows":67,"n_cols":16,"rows_kept":67,"cut":false,"hidden":false,"merged":[]}
["Bakselcode","Baksel voluit","R","G","B","Sorteervolgorde","Datering baksels in Nederlandse en Vlaamse bodem (max. looptijd)",null,null,"ABR-Periode",null,null,"ABR-afkorting","betekenis","begindatum","einddatum"]
["my","mayenaardewerk (Verwers & Van Es 1980: w6, w9, w12)",146,51,46,1,750,900,{"$f":"SUM(G2+H2)/2","v":825},"MEVC",null,null,"ME","Middeleeuwen",450,1500]
["wb","walberbergaardewerk (Verwers & Van Es 1980: w3, w4, w8)",148,6,67,2,750,900,{"$f":"SUM(G3+H3)/2","v":825},"MEVC",null,null,"MEV","Vroege Middeleeuwen",450,1050]
["ba","badorfaardewerk (Verwers & Van Es 1980: w1/2, w10)",255,255,204,3,725,1000,862.5,"MEVC/MEVD",null,null,"MEVA","Vroege Middeleeuwen A",450,525]
["pi","pingsdorf-type aardewerk",255,255,153,4,900,1200,1050,"MEVD/MELA",null,null,"MEVB","Vroege Middeleeuwen B",525,725]
["s5","steengoed 5 (proto-steengoed)",153,51,0,5,1200,1325,1262.5,"MELA/MELB",null,null,"MEVC","Vroege Middeleeuwen C",725,900]
["s4","steengoed 4 (bijna-steengoed)",218,88,0,6,1275,1325,1300,"MELB",null,null,"MEVD","Vroege Middeleeuwen D",900,1050]
["s1","steengoed 1 (zonder glazuur/engobe)",255,204,153,7,1300,1550,1425,"MELB/NTV",null,null,"MEL","Late Middeleeuwen",1050,1500]
["s2","steengoed 2 (met glazuur/engobe)",199,110,0,8,1300,1950,1625,"MELB/NT",null,null,"MELA","Late Middeleeuwen A",1050,1250]
["s8","steengoed 8 (met secundair aangebracht loodglazuur)",0,51,0,9,1350,1450,1400,"MELB",null,null,"MELB","Late Middeleeuwen B",1250,1500]
["s6","steengoed 6 (Frans steengoed)",128,0,0,10,1350,1700,1525,"MELB/NTV/NTM",null,null,"NT","Nieuwe Tijd",1500,"1945-05-05"]
["s7","steengoed 7 (Aziatisch steengoed)",51,51,0,11,1550,1850,1700,"NTV/NTM",null,null,"NTV","Vroege Nieuwe Tijd",1500,1650]
["gw","gladwandig aardewerk reducerend en oxiderend (merovingisch, knikwand, tatinger)",114,90,70,12,450,750,600,"MEVA/MEVB",null,null,"NTM","Midden Nieuwe Tijd ",1650,1850]
["rw","ruwwandig aardewerk, reducerend en oxiderend (merovingisch)",175,148,125,13,450,750,600,"MEVA/MEVB",null,null,"NTL","Late Nieuwe Tijd",1850,"1945-05-05"]
["kg","karolingisch grijs aardewerk (Verwers & Van Es 1980: w11, w13, w14)",64,67,86,14,600,850,725,"MEVB/MEVC"]
["du","duisburg aardewerk",154,158,180,15,900,1000,950,"MEVD"]
["hg","handgemaakt aardewerk (géén kogelpot; vroegmiddeleeuws handgemaakt, Hessens-Schortens, Angelsaksisch, …)",72,57,44,16,450,900,675,"MEVA/MEVB/MEVC"]
["kp","kogelpotaardewerk",51,51,51,17,800,1350,1075,"MEVD/MELA/MELB"]
["bg","blauwgrijs aardewerk",100,112,153,18,900,1400,1150,"MEVD/MELA/MELB"]
["g","grijsbakkend aardewerk",150,150,150,19,1150,1550,1350,"MEVD/MELA/MELB"]
["jy","jydepotaardewerk",95,95,95,20,1600,1750,1675,"NTV/NTM"]
["r","roodbakkend aardewerk",204,0,0,21,1150,1950,1550,"MEL/NT"]
["rm","Maaslands rood aardewerk",102,0,102,22,1200,1550,1375,"MELB"]
["dw","Duitsland-west aardewerk",204,153,255,23,1600,1700,1650,"NTV/NTM"]
["wa","werra-aardewerk",210,116,132,24,1575,1650,1612.5,"NTV"]
["hu","husumaardewerk",204,153,155,25,1550,1625,1587.5,"NTV"]
["rf","roodbakkend aardewerk uit Frankrijk",86,46,158,26,1500,1700,1600,"NTV/NTM"]
["ib","rood- of witbakkend aardewerk uit het Iberisch Schiereiland",255,204,255,27,1500,1750,1625,"NTV/NTM"]
["ri","roodbakkend aardewerk uit Italië",153,51,102,28,1550,1650,1600,"NTV"]
["ms","rood- of witbakkend slibaardewerk uit het mediterraan gebied",202,94,148,29,1550,1750,1650,"NTV/NTM"]
["ra","roodbakkend aardewerk uit Azië",210,116,132,30,1600,1800,1700,"NTV/NTM"]
["w","witbakkend aardewerk",247,255,218,31,1350,1950,1650,"MELB/NT"]
["wm","Maaslands wit aardewerk",255,255,0,32,900,1700,1300,"MEVD/MEL/NTV/NTM"]
["db","dieburgaardewerk",249,223,131,33,1350,1450,1400,"MELB"]
["ha","hafneraardewerk",255,204,0,34,1300,1600,1450,"MELB/NTV"]
["wd","witbakkend aardewerk uit Duitsland (geen hafneraardewerk)",255,220,71,35,1550,1800,1675,"NTV/NTM"]
["we","weseraardewerk",204,153,0,36,1575,1625,1600,"NTV"]
["wf","witbakkend aardewerk uit Frankrijk",153,102,0,37,1150,1700,1425,"MEL/NTV/NTM"]
["ew","witbakkend aardewerk uit Engeland",130,87,0,38,1200,1350,1275,"MELA/MELB"]
["am","archaïsche majolica",0,204,255,39,1275,1500,1387.5,"MELB"]
["m","majolica uit de Nederlanden",102,153,255,40,1475,1950,1712.5,"MELB/NT"]
["f","faience uit de Nederlanden",0,51,204,41,1625,1950,1787.5,"NT"]
["mb","majolicabiscuit",179,204,255,42,1475,1950,{"$f":"SUM(G43+H43)/2","v":1712.5},"MELB/NT"]
["fb","faiencebiscuit",67,112,255,43,1625,1950,{"$f":"SUM(G44+H44)/2","v":1787.5},"NT"]
["bi","biscuit voor majolica of faience",153,204,255,44,1500,1950,1725,"NT"]
["i","tinglazuuraardewerk uit Italië",51,102,0,45,1400,1700,1550,"MELB/NTV/NTM"]
["sp","tinglazuuraardewerk uit Spanje",51,153,51,46,1350,1650,1500,"MELB/NTV"]
["po","tinglazuuraardewerk uit Portugal",102,153,0,47,1600,1675,1637.5,"NTV/NTM"]
["fr","tinglazuuraardewerk uit Frankrijk",153,204,0,48,1550,1750,1650,"NTV/NTM"]
["d","tinglazuuraardewerk uit Duitsland",153,255,102,49,1550,1800,1675,"NTV/NTM"]
["in","tinglazuuraardewerk uit Turkije",204,255,153,50,1500,1700,1600,"NTV"]
["mx","tinglazuuraardewerk uit Mexico",197,255,197,51,1600,1650,1625,"NTV"]
["e","tinglazuuraardewerk uit Engeland",213,255,213,52,1550,1750,1650,"NTV/NTM"]
["p","Aziatisch porselein",0,51,102,53,1550,1950,1750,"NT"]
["ep","Europees porselein",51,102,153,54,1775,1950,1862.5,"NTM/NTL"]
["s3","steengoed 3 (industrieel)",192,192,192,55,1725,1950,1837.5,"NTM/NTL"]
["iw","industrieel wit",234,234,234,56,1750,1950,1850,"NTM/NTL"]
["iwb","industrieel wit biscuit",245,245,245,57,1750,1950,1850,"NTM/NTL"]
["iz","industrieel zwart",0,0,0,58,1725,1950,1837.5,"NTM/NTL"]
["ir","industrieel rood",188,0,63,59,1675,1950,1812.5,"NTM/NTL"]
["ik","industrieel kleur",204,51,153,60,1800,1950,1875,"NTM/NTL"]
["te","terracotta (beeld)",195,61,19,61,1350,1750,1550,"MELB/NTV/NTM"]
["ka","kunstaardewerk",233,76,27,62,1880,1950,1915,"NTL"]
["kab","kunstaardewerk biscuit",238,115,76,63,1880,1950,1915,"NTL"]
["py","pijpaarde",248,248,248,64,1350,1850,1600,"MELB/NTV/NTM"]
["gl","glas",148,138,84,65,450,1950,1200,"ME/NT"]
["indet.","indetermineerbaar",255,255,255,66,"n.v.t.","n.v.t."]

{"sheet":"Kleurenpalet totaal","index":2,"n_rows":68,"n_cols":14,"rows_kept":68,"cut":false,"hidden":false,"merged":[[0,9,0,11],[30,3,33,6],[51,13,55,16]]}
[null,null,null,null,null,null,null,null,null,"n scherven"]
["bakselcode"," n scherven uit opgraving",null,null,null,null,null,null,"bakselcode","spoor 1","spoor 2","spoor 3"]
["my",1,null,null,null,null,null,null,"my",1,2,3]
["wb",1,null,null,null,null,null,null,"wb",1,2,3]
["ba",1,null,null,null,null,null,null,"ba",1,2,3]
["pi",1,null,null,null,null,null,null,"pi",1,2,3]
["s5",1,null,null,null,null,null,null,"s5",1,2,3]
["s4",1,null,null,null,null,null,null,"s4",1,2,3]
["s1",1,null,null,null,null,null,null,"s1",1,2,3]
["s2",1,null,null,null,null,null,null,"s2",1,2,3]
["s8",1,null,null,null,null,null,null,"s8",1,2,3]
["s6",1,null,null,null,null,null,null,"s6",1,2,3]
["s7",1,null,null,null,null,null,null,"s7",1,2,3]
["gw",1,null,null,null,null,null,null,"gw",1,2,3]
["rw",1,null,null,null,null,null,null,"rw",1,2,3]
["kg",1,null,null,null,null,null,null,"kg",1,2,3]
["du",1,null,null,null,null,null,null,"du",1,2,3]
["hg",1,null,null,null,null,null,null,"hg",1,2,3]
["kp",1,null,null,null,null,null,null,"kp",1,2,3]
["bg",1,null,null,null,null,null,null,"bg",1,2,3]
["g",1,null,null,null,null,null,null,"g",1,2,3]
["jy",1,null,null,null,null,null,null,"jy",1,2,3]
["r",1,null,null,null,null,null,null,"r",1,2,3]
["rm",1,null,null,null,null,null,null,"rm",1,2,3]
["dw",1,null,null,null,null,null,null,"dw",1,2,3]
["wa",1,null,null,null,null,null,null,"wa",1,2,3]
["hu",1,null,null,null,null,null,null,"hu",1,2,3]
["rf",1,null,null,null,null,null,null,"rf",1,2,3]
["ib",1,null,null,null,null,null,null,"ib",1,2,3]
["ri",1,null,null,null,null,null,null,"ri",1,2,3]
["ms",1,null,"CTRL+t = uitvoeren makro over enkele dataset (bijv. taartdiagram met aantal scherven per bakselgroep)",null,null,null,null,"ms",1,2,3]
["ra",1,null,null,null,null,null,null,"ra",1,2,3]
["w",1,null,null,null,null,null,null,"w",1,2,3]
["wm",1,null,null,null,null,null,null,"wm",1,2,3]
["db",1,null,null,null,null,null,null,"db",1,2,3]
["ha",1,null,null,null,null,null,null,"ha",1,2,3]
["wd",1,null,null,null,null,null,null,"wd",1,2,3]
["we",1,null,null,null,null,null,null,"we",1,2,3]
["wf",1,null,null,null,null,null,null,"wf",1,2,3]
["ew",1,null,null,null,null,null,null,"ew",1,2,3]
["am",1,null,null,null,null,null,null,"am",1,2,3]
["m",1,null,null,null,null,null,null,"m",1,2,3]
["f",1,null,null,null,null,null,null,"f",1,2,3]
["mb",1,null,null,null,null,null,null,"mb",1,2,3]
["fb",1,null,null,null,null,null,null,"fb",1,2,3]
["bi",1,null,null,null,null,null,null,"bi",1,2,3]
["i",1,null,null,null,null,null,null,"i",1,2,3]
["sp",1,null,null,null,null,null,null,"sp",1,2,3]
["po",1,null,null,null,null,null,null,"po",1,2,3]
["fr",1,null,null,null,null,null,null,"fr",1,2,3]
["d",1,null,null,null,null,null,null,"d",1,2,3]
["in",1,null,null,null,null,null,null,"in",1,2,3,null,"CTRL+f = uitvoeren makro over kruistabel (bijv. cumulatief of relatief staafdiagram met het aantal scherven per bakselgroep verdeeld over verschillende archeologische spoornummers)"]
["mx",1,null,null,null,null,null,null,"mx",1,2,3]
["e",1,null,null,null,null,null,null,"e",1,2,3]
["p",1,null,null,null,null,null,null,"p",1,2,3]
["ep",1,null,null,null,null,null,null,"ep",1,2,3]
["s3",1,null,null,null,null,null,null,"s3",1,2,3]
["iw",1,null,null,null,null,null,null,"iw",1,2,3]
["iwb",1,null,null,null,null,null,null,"iwb",1,2,3]
["iz",1,null,null,null,null,null,null,"iz",1,2,3]
["ir",1,null,null,null,null,null,null,"ir",1,2,3]
["ik",1,null,null,null,null,null,null,"ik",1,2,3]
["te",1,null,null,null,null,null,null,"te",1,2,3]
["ka",1,null,null,null,null,null,null,"ka",1,2,3]
["kab",1,null,null,null,null,null,null,"kab",1,2,3]
["py",1,null,null,null,null,null,null,"py",1,2,3]
["gl",1,null,null,null,null,null,null,"gl",1,2,3]
["indet.",1,null,null,null,null,null,null,"indet.",1,2,3]

{"sheet":"Kleurenpalet per periode","index":3,"n_rows":97,"n_cols":10,"rows_kept":97,"cut":false,"hidden":false,"merged":[[80,0,80,1],[0,0,0,1],[0,8,0,9],[24,0,24,1],[24,8,24,9],[46,0,46,1],[46,8,46,9]]}
["Merovingische Tijd (MEVB)",null,null,null,null,null,null,null,"Karolingische Tijd (MEVC)"]
["baksel","n",null,null,null,null,null,null,"baksel","n"]
["gw",1,null,null,null,null,null,null,"my",1]
["rw",1,null,null,null,null,null,null,"wb",1]
["hg",1,null,null,null,null,null,null,"ba",1]
[null,null,null,null,null,null,null,null,"hg",1]
[null,null,null,null,null,null,null,null,"kp",1]
[null,null,null,null,null,null,null,null,"kg",1]
[]
[]
[]
[]
[]
[]
[]
[]
[]
[]
[]
[]
[]
[]
[]
[]
["Volle Middeleeuwen (MEVD/MELA)",null,null,null,null,null,null,null,"Late Middeleeuwen (MELB)"]
["baksel","n",null,null,null,null,null,null,"baksel","n"]
["du",1,null,null,null,null,null,null,"s5",1]
["pi",1,null,null,null,null,null,null,"s4",1]
["s5",1,null,null,null,null,null,null,"s1",1]
["kp",1,null,null,null,null,null,null,"s2",1]
["bg",1,null,null,null,null,null,null,"s8",1]
["rm",1,null,null,null,null,null,null,"s6",1]
["wm",1,null,null,null,null,null,null,"kp",1]
["ew",1,null,null,null,null,null,null,"bg",1]
[null,null,null,null,null,null,null,null,"g",1]
[null,null,null,null,null,null,null,null,"r",1]
[null,null,null,null,null,null,null,null,"db",1]
[null,null,null,null,null,null,null,null,"ha",1]
[null,null,null,null,null,null,null,null,"am",1]
[null,null,null,null,null,null,null,null,"te",1]
[null,null,null,null,null,null,null,null,"py",1]
[]
[]
[]
[]
[]
["Vroegmoderne tijd A (NTV)",null,null,null,null,null,null,null,"Vroegmoderne tijd B (NTM)"]
["baksel","n",null,null,null,null,null,null,"baksel","n"]
["s2",1,null,null,null,null,null,null,"s2",1]
["s7",1,null,null,null,null,null,null,"r",1]
["jy",1,null,null,null,null,null,null,"ra",1]
["r",1,null,null,null,null,null,null,"w",1]
["dw",1,null,null,null,null,null,null,"m",1]
["wa",1,null,null,null,null,null,null,"f",1]
["hu",1,null,null,null,null,null,null,"mb",1]
["rf",1,null,null,null,null,null,null,"fb",1]
["ib",1,null,null,null,null,null,null,"bi",1]
["ri",1,null,null,null,null,null,null,"e",1]
["ms",1,null,null,null,null,null,null,"p",1]
["ra",1,null,null,null,null,null,null,"iw",1]
["w",1,null,null,null,null,null,null,"ir",1]
["wd",1,null,null,null,null,null,null,"s3",1]
["we",1,null,null,null,null,null,null,"py",1]
["wf",1,null,null,null,null,null,null,"gl",1]
["m",1]
["f",1]
["i",1]
["sp",1]
["po",1]
["fr",1]
["dw",1]
["in",1]
["mx",1]
["e",1]
["p",1]
["te",1]
["py",1]
["gl",1]
[]
[]
["Moderne tijd (NTL)"]
["baksel","n"]
["s2",1]
["r",1]
["w",1]
["p",1]
["ep",1]
["s3",1]
["iw",1]
["iwb",1]
["iz",1]
["ir",1]
["ik",1]
["ka",1]
["kab",1]
["te",1]
["gl",1]

{"sheet":"Tellijst bakselverdeling","index":4,"n_rows":33,"n_cols":8,"rows_kept":33,"cut":false,"hidden":false,"merged":[[0,0,0,3],[0,6,0,7]]}
["Voorbeeld tellijst volgens Deventer systeem",null,null,null,null,null,"Voorbeeld bakselverdeling"]
["Baksel","Vorm","Type","MAE",null,null,"Baksel","MAE"]
["s2"," "," ",1,null,null,"s2",{"$f":"SUM(D3:D4)","v":4}]
["s2","kan"," ",3,null,null,"r",{"$f":"SUM(D5:D22)","v":43}]
["r"," "," ",4,null,null,"w",{"$f":"SUM(D23:D25)","v":6}]
["r","bak",2,1,null,null,"wf",4]
["r","bor"," ",1,null,null,"wa",3]
["r","bor",6,1,null,null,"ib",1]
["r","gra"," ",5,null,null,"m",1]
["r","gra",34,1,null,null,"i",2]
["r","gra",64,1,null,null,"Totaal",{"$f":"SUM(H3:H10)","v":64}]
["r","gra",72,1]
["r","gra",91,1]
["r","gra",108,1]
["r","gra",127,1]
["r","kan",31,18]
["r","kan",63,1]
["r","kom"," ",1]
["r","oli"," ",2]
["r","pis"," ",1]
["r","tes"," ",1]
["r","vst"," ",1]
["w"," "," ",3]
["w","gra"," ",1]
["w","pis"," ",2]
["wf","bor"," ",3]
["wf","kru"," ",1]
["wa","bor"," ",2]
["wa","bor",1,1]
["ib","kru"," ",1]
["m","bor"," ",1]
["i","bor"," ",2]
["Totaal",null,null,{"$f":"SUM(D3:D32)","v":64}]